fUST/lending_fUST_20250208
["ID","MTS","AMOUNT","RATE_DAILY","PERIOD"]
[352109979,1738951842404,-1017.47,0.00010959,2]
[352109980,1738951842413,-847.89,0.00010959,2]
[352109981,1738951842422,-706.58,0.00010959,2]
[352109982,1738951842431,-588.82,0.00010959,2]
[352109983,1738951842440,-490.68,0.00010959,2]
[352109984,1738951842449,-408.9,0.00010959,2]
[352109985,1738951842458,-340.75,0.00010959,2]
[352109986,1738951842467,-283.96,0.00010959,2]
[352109987,1738951842476,-500.0,0.00010973,2]
[352109988,1738951842487,-180.96845588,0.00010995,2]
[352109989,1738951842496,-151.0,0.00011,2]
[352109990,1738951842505,-151.0,0.00011,2]
[352109991,1738951842514,-151.0,0.00011,2]
[352109993,1738951842523,-151.0,0.00011,2]
[352109994,1738951842532,-151.0,0.00011,2]
[352109996,1738951842542,-501.94270361,0.00011073,2]
[352109999,1738951842554,-500.0,0.00011073,2]
[352110001,1738951842564,-267.61131442,0.00011073,2]
[352110002,1738951842574,-500.0,0.00011073,2]
[352110005,1738951842583,-500.0,0.00011073,2]
[352110006,1738951842593,-10778.9,0.00011094,2]
[352110008,1738951842603,-10778.9,0.00011094,2]
[352110011,1738951842614,-10778.9,0.00011094,2]
[352110012,1738951842623,-10778.9,0.00011094,2]
[352110014,1738951842634,-10778.9,0.00011094,2]
[352110018,1738951842645,-10778.9,0.00011094,2]
[352110020,1738951842654,-10778.9,0.00011094,2]
[352110023,1738951842663,-10778.9,0.00011094,2]
[352110025,1738951842672,-10778.9,0.00011094,2]
[352110028,1738951842682,-10778.94290925,0.00011094,2]
[352110029,1738951842691,-500.0,0.00011095,2]
[352110031,1738951842700,-500.0,0.00011095,2]
[352110034,1738951842710,-500.0,0.00011095,2]
[352110036,1738951842719,-500.0,0.00011095,2]
[352110038,1738951842728,-500.0,0.00011095,2]
[352110040,1738951842738,-500.0,0.00011095,2]
[352110042,1738951842747,-500.0,0.00011095,2]
[352110044,1738951842756,-500.0,0.00011095,2]
[352110046,1738951842766,-500.0,0.00011095,2]
[352110049,1738951842775,-500.0,0.00011095,2]
[352110050,1738951842784,-220.46,0.00011095,2]
[352110052,1738951842794,-500.0,0.00011095,2]
[352110054,1738951842804,-500.0,0.00011095,2]
[352110056,1738951842813,-500.0,0.00011095,2]
[352110059,1738951842822,-500.0,0.00011095,2]
[352110063,1738951842831,-500.0,0.00011095,2]
[352110065,1738951842840,-259.12,0.00011095,2]
[352110067,1738951842850,-500.0,0.00011095,2]
[352110069,1738951842859,-566.88898892,0.00011095,2]
[352110071,1738951842868,-500.0,0.00011095,2]
[352110073,1738951842877,-500.0,0.00011095,2]
[352110075,1738951842887,-500.0,0.00011095,2]
[352110077,1738951842896,-500.0,0.00011095,2]
[352110079,1738951842905,-606.05490238,0.00011095,2]
[352110081,1738951842915,-500.0,0.00011095,2]
[352110083,1738951842924,-500.0,0.00011095,2]
[352110085,1738951842933,-500.0,0.00011095,2]
[352110087,1738951842943,-500.0,0.00011095,2]
[352110089,1738951842953,-580.09,0.00011095,2]
[352110091,1738951842962,-500.0,0.00011095,2]
[352110093,1738951842971,-501.82839792,0.00011095,2]
[352110095,1738951842981,-500.0,0.00011095,2]
[352110097,1738951842990,-500.0,0.00011095,2]
[352110099,1738951842999,-500.0,0.00011095,2]
[352110102,1738951843009,-500.0,0.00011095,2]
[352110104,1738951843018,-500.0,0.00011095,2]
[352110108,1738951843027,-500.0,0.00011095,2]
[352110111,1738951843039,-500.0,0.00011095,2]
[352110114,1738951843052,-547.89164668,0.00011095,2]
[352110116,1738951843062,-500.0,0.00011095,2]
[352110118,1738951843071,-500.0,0.00011095,2]
[352110120,1738951843080,-500.0,0.00011095,2]
[352110122,1738951843090,-500.0,0.00011095,2]
[352110124,1738951843099,-500.0,0.00011095,2]
[352110126,1738951843109,-500.0,0.00011095,2]
[352110128,1738951843119,-500.0,0.00011095,2]
[352110130,1738951843129,-500.0,0.00011095,2]
[352110132,1738951843138,-500.0,0.00011095,2]
[352110134,1738951843148,-917.41,0.00011095,2]
[352110136,1738951843158,-500.0,0.00011095,2]
[352110138,1738951843167,-500.0,0.00011095,2]
[352110140,1738951843176,-500.0,0.00011095,2]
[352110142,1738951843185,-500.0,0.00011095,2]
[352110144,1738951843194,-500.0,0.00011095,2]
[352110146,1738951843204,-500.0,0.00011095,2]
[352110148,1738951843214,-643.05173133,0.00011095,2]
[352110150,1738951843223,-500.0,0.00011095,2]
[352110152,1738951843233,-187.17761615,0.00011095,2]
[352110154,1738951843243,-773.62,0.00011095,2]
[352110156,1738951843252,-500.0,0.00011095,2]
[352110158,1738951843262,-500.0,0.00011095,2]
[352110161,1738951843271,-571.00024054,0.00011095,2]
[352110163,1738951843280,-1254.09,0.00011095,2]
[352110165,1738951843290,-500.0,0.00011095,2]
[352110166,1738951843299,-500.0,0.00011095,2]
[352110169,1738951843308,-500.0,0.00011095,2]
[352110171,1738951843317,-500.0,0.00011095,2]
[352110173,1738951843327,-500.0,0.00011095,2]
[352110174,1738951843336,-500.0,0.00011095,2]
[352110176,1738951843345,-592.23,0.00011095,2]
[352110179,1738951843354,-500.0,0.00011095,2]
[352110181,1738951843364,-1316.79,0.00011095,2]
[352110183,1738951843373,-500.0,0.00011095,2]
[352110184,1738951843382,-500.0,0.00011095,2]
[352110186,1738951843391,-500.0,0.00011095,2]
[352110189,1738951843402,-500.0,0.00011095,2]
[352110190,1738951843411,-1206.3,0.00011095,2]
[352110193,1738951843420,-500.0,0.00011095,2]
[352110195,1738951843430,-500.0,0.00011095,2]
[352110197,1738951843439,-500.0,0.00011095,2]
[352110199,1738951843449,-500.0,0.00011095,2]
[352110202,1738951843458,-500.0,0.00011095,2]
[352110205,1738951843467,-882.13,0.00011095,2]
[352110208,1738951843476,-500.0,0.00011095,2]
[352110211,1738951843486,-512.66413506,0.00011095,2]
[352110214,1738951843495,-500.0,0.00011095,2]
[352110217,1738951843505,-500.0,0.00011095,2]
[352110219,1738951843515,-500.0,0.00011095,2]
[352110221,1738951843524,-500.0,0.00011095,2]
[352110223,1738951843533,-500.0,0.00011095,2]
[352110226,1738951843542,-500.0,0.00011095,2]
[352110229,1738951843551,-565.71,0.00011095,2]
[352110231,1738951843561,-500.0,0.00011095,2]
[352110233,1738951843570,-500.0,0.00011095,2]
[352110235,1738951843578,-500.0,0.00011095,2]
[352110237,1738951843587,-500.0,0.00011095,2]
[352110239,1738951843596,-500.0,0.00011095,2]
[352110241,1738951843606,-500.0,0.00011095,2]
[352110243,1738951843615,-500.0,0.00011095,2]
[352110245,1738951843624,-500.0,0.00011095,2]
[352110247,1738951843634,-500.0,0.00011095,2]
[352110249,1738951843642,-500.0,0.00011095,2]
[352110251,1738951843652,-500.0,0.00011095,2]
[352110253,1738951843661,-330.44330893,0.00011095,2]
[352110254,1738951843670,-500.0,0.00011095,2]
[352110256,1738951843680,-500.0,0.00011095,2]
[352110259,1738951843690,-500.0,0.00011095,2]
[352110261,1738951843700,-500.0,0.00011095,2]
[352110262,1738951843709,-500.0,0.00011095,2]
[352110264,1738951843718,-500.0,0.00011095,2]
[352110267,1738951843728,-500.0,0.00011095,2]
[352110269,1738951843738,-500.0,0.00011095,2]
[352110271,1738951843748,-500.0,0.00011095,2]
[352110272,1738951843757,-500.0,0.00011095,2]
[352110275,1738951843766,-500.0,0.00011095,2]
[352110276,1738951843776,-500.0,0.00011095,2]
[352110278,1738951843785,-500.0,0.00011095,2]
[352110280,1738951843795,-812.31,0.00011095,2]
[352110282,1738951843804,-500.0,0.00011095,2]
[352110284,1738951843814,-500.0,0.00011095,2]
[352110287,1738951843823,-583.15,0.00011095,2]
[352110289,1738951843833,-981.58,0.00011095,2]
[352110291,1738951843842,-500.0,0.00011095,2]
[352110292,1738951843852,-500.0,0.00011095,2]
[352110294,1738951843861,-500.0,0.00011095,2]
[352110297,1738951843871,-500.0,0.00011095,2]
[352110299,1738951843881,-641.96367178,0.00011095,2]
[352110300,1738951843890,-858.36,0.00011095,2]
[352110303,1738951843900,-500.0,0.00011095,2]
[352110304,1738951843910,-500.0,0.00011095,2]
[352110306,1738951843920,-500.0,0.00011095,2]
[352110308,1738951843930,-500.0,0.00011095,2]
[352110310,1738951843939,-500.0,0.00011095,2]
[352110312,1738951843949,-500.0,0.00011095,2]
[352110314,1738951843958,-500.0,0.00011095,2]
[352110316,1738951843967,-212.5502707,0.00011095,2]
[352110318,1738951843976,-500.0,0.00011095,2]
[352110320,1738951843985,-500.0,0.00011095,2]
[352110322,1738951843996,-500.0,0.00011095,2]
[352110324,1738951844005,-500.0,0.00011095,2]
[352110326,1738951844014,-257.18,0.00011095,2]
[352110328,1738951844024,-500.0,0.00011095,2]
[352110330,1738951844034,-500.0,0.00011095,2]
[352110332,1738951844047,-500.0,0.00011095,2]
[352110334,1738951844059,-500.0,0.00011095,2]
[352110336,1738951844068,-500.0,0.00011095,2]
[352110338,1738951844078,-501.30723013,0.00011095,2]
[352110340,1738951844088,-638.72,0.00011095,2]
[352110342,1738951844098,-500.0,0.00011095,2]
[352110344,1738951844107,-502.59485842,0.00011095,2]
[352110346,1738951844116,-788.54,0.00011095,2]
[352110348,1738951844126,-500.0,0.00011095,2]
[352110350,1738951844135,-1348.78,0.00011095,2]
[352110352,1738951844145,-18928.19,0.00011095,2]
[352110354,1738951844154,-500.0,0.00011095,2]
[352110356,1738951844163,-500.0,0.00011095,2]
[352110358,1738951844173,-500.0,0.00011095,2]
[352110360,1738951844183,-500.0,0.00011095,2]
[352110362,1738951844192,-500.0,0.00011095,2]
[352110364,1738951844201,-500.0,0.00011095,2]
[352110367,1738951844212,-500.0,0.00011095,2]
[352110368,1738951844221,-500.0,0.00011095,2]
[352110370,1738951844232,-500.0,0.00011095,2]
[352110373,1738951844242,-500.0,0.00011095,2]
[352110375,1738951844252,-500.0,0.00011095,2]
[352110376,1738951844262,-500.0,0.00011095,2]
[352110378,1738951844271,-500.0,0.00011095,2]
[352110381,1738951844281,-500.0,0.00011095,2]
[352110383,1738951844290,-500.0,0.00011095,2]
[352110385,1738951844300,-1612.79,0.00011095,2]
[352110386,1738951844310,-500.0,0.00011095,2]
[352110388,1738951844319,-500.0,0.00011095,2]
[352110390,1738951844328,-500.0,0.00011095,2]
[352110392,1738951844337,-937.89,0.00011095,2]
[352110394,1738951844346,-585.02631731,0.00011095,2]
[352110397,1738951844356,-779.21,0.00011095,2]
[352110398,1738951844366,-955.08,0.00011095,2]
[352110401,1738951844376,-500.0,0.00011095,2]
[352110402,1738951844386,-652.09,0.00011095,2]
[352110404,1738951844395,-500.0,0.00011095,2]
[352110406,1738951844405,-500.0,0.00011095,2]
[352110408,1738951844415,-500.0,0.00011095,2]
[352110410,1738951844425,-500.0,0.00011095,2]
[352110429,1738951844580,-500.0,0.00011095,2]
[352110431,1738951844590,-958.01,0.00011095,2]
[352110433,1738951844600,-910.53,0.00011095,2]
[352110435,1738951844609,-500.0,0.00011095,2]
[352110437,1738951844619,-500.0,0.00011095,2]
[352110439,1738951844629,-500.0,0.00011095,2]
[352110441,1738951844639,-819.51,0.00011095,2]
[352110443,1738951844648,-500.0,0.00011095,2]
[352110445,1738951844658,-500.0,0.00011095,2]
[352110447,1738951844667,-3840.07,0.00011095,2]
[352110448,1738951844676,-500.0,0.00011095,2]
[352110449,1738951844686,-500.0,0.00011095,2]
[352110450,1738951844695,-766.23,0.00011095,2]
[352110451,1738951844705,-500.0,0.00011095,2]
[352110452,1738951844714,-500.0,0.00011095,2]
[352110453,1738951844723,-500.0,0.00011095,2]
[352110454,1738951844732,-500.0,0.00011095,2]
[352110455,1738951844742,-500.0,0.00011095,2]
[352110456,1738951844751,-839.8,0.00011095,2]
[352110457,1738951844761,-500.0,0.00011095,2]
[352110458,1738951844770,-3029.27,0.00011095,2]
[352110459,1738951844779,-500.0,0.00011095,2]
[352110460,1738951844788,-1555.5,0.00011095,2]
[352110462,1738951844799,-500.0,0.00011095,2]
[352110464,1738951844808,-500.0,0.00011095,2]
[352110466,1738951844818,-500.0,0.00011095,2]
[352110468,1738951844827,-507.7,0.00011095,2]
[352110470,1738951844836,-500.0,0.00011095,2]
[352110472,1738951844846,-500.0,0.00011095,2]
[352110474,1738951844856,-646.63,0.00011095,2]
[352110476,1738951844866,-500.0,0.00011095,2]
[352110478,1738951844875,-500.0,0.00011095,2]
[352110480,1738951844884,-500.0,0.00011095,2]
[352110482,1738951844894,-500.0,0.00011095,2]
[352110484,1738951844903,-500.0,0.00011095,2]
[352110486,1738951844912,-500.0,0.00011095,2]
[352110488,1738951844921,-500.0,0.00011095,2]
[352110490,1738951844931,-500.0,0.00011095,2]
[352110492,1738951844941,-832.81,0.00011095,2]
[352110494,1738951844951,-6257.88,0.00011095,2]
[352110496,1738951844961,-500.0,0.00011095,2]
[352110499,1738951844971,-734.68,0.00011095,2]
[352110501,1738951844982,-10397.88,0.00011095,2]
[352110503,1738951844991,-500.0,0.00011095,2]
[352110505,1738951845000,-654.99,0.00011095,2]
[352110506,1738951845010,-500.0,0.00011095,2]
[352110509,1738951845020,-500.0,0.00011095,2]
[352110511,1738951845029,-690.07,0.00011095,2]
[352110513,1738951845044,-500.0,0.00011095,2]
[352110515,1738951845054,-525.76,0.00011095,2]
[352110517,1738951845064,-500.0,0.00011095,2]
[352110519,1738951845073,-1266.87,0.00011095,2]
[352110521,1738951845084,-2200.03,0.00011095,2]
[352110523,1738951845095,-4185.0,0.00011095,2]
[352110525,1738951845104,-4706.93,0.00011095,2]
[352110527,1738951845114,-837.48,0.00011095,2]
[352110529,1738951845126,-377.31095079,0.00011095,2]
[352110531,1738951845135,-2108.12,0.00011095,2]
[352110533,1738951845144,-910.19,0.00011095,2]
[352110535,1738951845154,-500.0,0.00011095,2]
[352110536,1738951845163,-500.0,0.00011095,2]
[352110538,1738951845173,-4782.15,0.00011095,2]
[352110540,1738951845182,-500.0,0.00011095,2]
[352110542,1738951845192,-500.0,0.00011095,2]
[352110544,1738951845202,-500.0,0.00011095,2]
[352110547,1738951845212,-500.0,0.00011095,2]
[352110548,1738951845221,-500.0,0.00011095,2]
[352110551,1738951845231,-500.0,0.00011095,2]
[352110552,1738951845242,-500.0,0.00011095,2]
[352110555,1738951845252,-500.0,0.00011095,2]
[352110556,1738951845262,-522.44,0.00011095,2]
[352110559,1738951845272,-500.0,0.00011095,2]
[352110561,1738951845282,-14855.49,0.00011095,2]
[352110563,1738951845292,-1015.7,0.00011095,2]
[352110565,1738951845302,-500.0,0.00011095,2]
[352110567,1738951845312,-500.0,0.00011095,2]
[352110569,1738951845321,-500.0,0.00011095,2]
[352110571,1738951845330,-1899.91,0.00011095,2]
[352110573,1738951845340,-500.0,0.00011095,2]
[352110575,1738951845349,-500.0,0.00011095,2]
[352110577,1738951845359,-1080.87,0.00011095,2]
[352110579,1738951845368,-500.0,0.00011095,2]
[352110581,1738951845378,-42882.94,0.00011095,2]
[352110583,1738951845388,-500.0,0.00011095,2]
[352110585,1738951845398,-2217.79,0.00011095,2]
[352110587,1738951845408,-588.55,0.00011095,2]
[352110589,1738951845419,-500.0,0.00011095,2]
[352110591,1738951845427,-500.0,0.00011095,2]
[352110593,1738951845437,-500.0,0.00011095,2]
[352110595,1738951845447,-1184.64,0.00011095,2]
[352110597,1738951845457,-500.0,0.00011095,2]
[352110599,1738951845466,-5616.92,0.00011095,2]
[352110601,1738951845476,-500.0,0.00011095,2]
[352110603,1738951845486,-500.0,0.00011095,2]
[352110605,1738951845496,-694.18,0.00011095,2]
[352110607,1738951845505,-500.0,0.00011095,2]
[352110609,1738951845514,-2028.94,0.00011095,2]
[352110611,1738951845525,-500.0,0.00011095,2]
[352110613,1738951845534,-500.0,0.00011095,2]
[352110615,1738951845543,-500.0,0.00011095,2]
[352110617,1738951845553,-2546.25,0.00011095,2]
[352110619,1738951845562,-693.43,0.00011095,2]
[352110621,1738951845572,-7043.68,0.00011095,2]
[352110623,1738951845581,-500.0,0.00011095,2]
[352110625,1738951845591,-1608.85,0.00011095,2]
[352110627,1738951845600,-1043.44,0.00011095,2]
[352110629,1738951845610,-5757.71,0.00011095,2]
[352110631,1738951845619,-500.0,0.00011095,2]
[352110633,1738951845629,-2238.72,0.00011095,2]
[352110635,1738951845638,-504.77007568,0.00011095,2]
[352110636,1738951845648,-500.0,0.00011095,2]
[352110638,1738951845658,-500.0,0.00011095,2]
[352110641,1738951845667,-500.0,0.00011095,2]
[352110643,1738951845677,-500.0,0.00011095,2]
[352110644,1738951845686,-500.0,0.00011095,2]
[352110647,1738951845696,-961.33,0.00011095,2]
[352110650,1738951845706,-2939.94,0.00011095,2]
[352110652,1738951845716,-500.0,0.00011095,2]
[352110654,1738951845725,-572.15,0.00011095,2]
[352110656,1738951845735,-500.0,0.00011095,2]
[352110658,1738951845744,-2793.36,0.00011095,2]
[352110661,1738951845753,-754.7,0.00011095,2]
[352110663,1738951845762,-500.0,0.00011095,2]
[352110665,1738951845772,-500.0,0.00011095,2]
[352110667,1738951845782,-14498.7,0.00011095,2]
[352110669,1738951845791,-500.0,0.00011095,2]
[352110672,1738951845801,-1614.6,0.00011095,2]
[352110673,1738951845810,-500.0,0.00011095,2]
[352110677,1738951845820,-1570.52,0.00011095,2]
[352110679,1738951845830,-651.77,0.00011095,2]
[352110681,1738951845839,-500.0,0.00011095,2]
[352110683,1738951845850,-500.0,0.00011095,2]
[352110685,1738951845859,-500.0,0.00011095,2]
[352110687,1738951845868,-151.0,0.000111,2]
[352110689,1738951845881,-151.0,0.000111,2]
[352110691,1738951845891,-151.0,0.000111,2]
[352110693,1738951845900,-151.0,0.000111,2]
[352110695,1738951845910,-151.0,0.000111,2]
[352110697,1738951845920,-151.0,0.000111,2]
[352110699,1738951845929,-151.0,0.000111,2]
[352110701,1738951845939,-151.0,0.000112,2]
[352110703,1738951845948,-151.0,0.000112,2]
[352110705,1738951845958,-151.0,0.000112,2]
[352110707,1738951845967,-151.0,0.000112,2]
[352110710,1738951845976,-151.0,0.000112,2]
[352110712,1738951845986,-428.83655808,0.00011232,2]
[352110714,1738951845995,-356.341764,0.00011232,2]
[352110716,1738951846004,-356.341764,0.00011232,2]
[352110718,1738951846014,-500.0,0.00011232,2]
[352110720,1738951846023,-500.0,0.00011232,2]
[352110722,1738951846033,-500.0,0.00011232,2]
[352110724,1738951846046,-500.0,0.00011232,2]
[352110726,1738951846055,-500.0,0.00011232,2]
[352110728,1738951846065,-500.0,0.00011232,2]
[352110730,1738951846074,-500.0,0.00011232,2]
[352110732,1738951846085,-813.992435,0.00011232,2]
[352110734,1738951846095,-813.992435,0.00011232,2]
[352110736,1738951846104,-414.94,0.00011232,2]
[352110738,1738951846114,-500.0,0.00011232,2]
[352110740,1738951846123,-201.3442892,0.00011232,2]
[352110742,1738951846133,-500.0,0.00011232,2]
[352110744,1738951846142,-500.0,0.00011232,2]
[352110746,1738951846152,-500.0,0.00011232,2]
[352110748,1738951846161,-500.0,0.00011232,2]
[352110750,1738951846171,-456.78622391,0.00011232,2]
[352110752,1738951846180,-500.0,0.00011232,2]
[352110754,1738951846189,-500.0,0.00011232,2]
[352110756,1738951846199,-243.85592244,0.00011232,2]
[352110758,1738951846209,-580.09,0.00011232,2]
[352110760,1738951846219,-500.0,0.00011232,2]
[352110762,1738951846228,-500.0,0.00011232,2]
[352110765,1738951846239,-500.0,0.00011232,2]
[352110767,1738951846248,-536.46751517,0.00011232,2]
[352110769,1738951846258,-500.0,0.00011232,2]
[352110771,1738951846267,-500.0,0.00011232,2]
[352110773,1738951846277,-531.31439289,0.00011232,2]
[352110775,1738951846286,-500.0,0.00011232,2]
[352110777,1738951846295,-500.0,0.00011232,2]
[352110779,1738951846304,-500.0,0.00011232,2]
[352110780,1738951846313,-500.0,0.00011232,2]
[352110783,1738951846323,-500.0,0.00011232,2]
[352110785,1738951846332,-331.05,0.00011232,2]
[352110787,1738951846342,-500.0,0.00011232,2]
[352110788,1738951846351,-500.0,0.00011232,2]
[352110790,1738951846360,-500.0,0.00011232,2]
[352110792,1738951846370,-917.41,0.00011232,2]
[352110795,1738951846380,-500.0,0.00011232,2]
[352110797,1738951846389,-500.0,0.00011232,2]
[352110799,1738951846398,-500.0,0.00011232,2]
[352110801,1738951846407,-500.0,0.00011232,2]
[352110803,1738951846417,-500.0,0.00011232,2]
[352110805,1738951846429,-411.12,0.00011232,2]
[352110807,1738951846481,-500.0,0.00011232,2]
[352110809,1738951846607,-773.62,0.00011232,2]
[352110811,1738951846705,-500.0,0.00011232,2]
[352110813,1738951846828,-500.0,0.00011232,2]
[352110815,1738951846908,-1254.09,0.00011232,2]
[352110817,1738951847005,-500.0,0.00011232,2]
[352110819,1738951847117,-501.57415247,0.00011232,2]
[352110822,1738951847257,-500.0,0.00011232,2]
[352110824,1738951847344,-541.97166922,0.00011232,2]
[352110826,1738951847447,-500.0,0.00011232,2]
[352110828,1738951847529,-592.23,0.00011232,2]
[352110831,1738951847583,-206.22422792,0.00011232,2]
[352110833,1738951847593,-500.0,0.00011232,2]
[352110835,1738951847602,-1316.79,0.00011232,2]
[352110837,1738951847612,-500.0,0.00011232,2]
[352110839,1738951847622,-500.0,0.00011232,2]
[352110841,1738951847631,-1206.3,0.00011232,2]
[352110843,1738951847640,-500.0,0.00011232,2]
[352110845,1738951847649,-500.0,0.00011232,2]
[352110847,1738951847659,-500.0,0.00011232,2]
[352110849,1738951847669,-500.0,0.00011232,2]
[352110851,1738951847678,-500.0,0.00011232,2]
[352110853,1738951847687,-882.13,0.00011232,2]
[352110855,1738951847696,-500.0,0.00011232,2]
[352110857,1738951847705,-500.0,0.00011232,2]
[352110859,1738951847714,-500.0,0.00011232,2]
[352110861,1738951847723,-500.0,0.00011232,2]
[352110863,1738951847732,-557.83,0.00011232,2]
[352110865,1738951847742,-565.71,0.00011232,2]
[352110867,1738951847751,-358.88,0.00011232,2]
[352110869,1738951847760,-500.0,0.00011232,2]
[352110871,1738951847770,-500.0,0.00011232,2]
[352110873,1738951847778,-500.0,0.00011232,2]
[352110875,1738951847788,-500.0,0.00011232,2]
[352110876,1738951847800,-167.55,0.00011232,2]
[352110877,1738951847809,-500.0,0.00011232,2]
[352110878,1738951847819,-500.97557477,0.00011232,2]
[352110879,1738951847828,-201.88561725,0.00011232,2]
[352110880,1738951847837,-500.0,0.00011232,2]
[352110881,1738951847847,-500.0,0.00011232,2]
[352110882,1738951847856,-500.0,0.00011232,2]
[352110883,1738951847866,-500.0,0.00011232,2]
[352110884,1738951847875,-500.0,0.00011232,2]
[352110885,1738951847885,-500.0,0.00011232,2]
[352110886,1738951847894,-500.0,0.00011232,2]
[352110887,1738951847904,-500.0,0.00011232,2]
[352110889,1738951847914,-500.0,0.00011232,2]
[352110891,1738951847923,-500.0,0.00011232,2]
[352110893,1738951847933,-500.0,0.00011232,2]
[352110895,1738951847942,-500.0,0.00011232,2]
[352110898,1738951847952,-500.0,0.00011232,2]
[352110900,1738951847961,-500.0,0.00011232,2]
[352110901,1738951847970,-812.31,0.00011232,2]
[352110903,1738951847979,-500.0,0.00011232,2]
[352110905,1738951847989,-500.0,0.00011232,2]
[352110907,1738951847998,-583.15,0.00011232,2]
[352110909,1738951848008,-981.58,0.00011232,2]
[352110911,1738951848018,-500.0,0.00011232,2]
[352110913,1738951848028,-500.0,0.00011232,2]
[352110915,1738951848040,-500.0,0.00011232,2]
[352110917,1738951848051,-430.85297543,0.00011232,2]
[352110919,1738951848060,-858.36,0.00011232,2]
[352110921,1738951848070,-500.0,0.00011232,2]
[352110923,1738951848080,-500.0,0.00011232,2]
[352110925,1738951848090,-500.0,0.00011232,2]
[352110927,1738951848100,-500.0,0.00011232,2]
[352110929,1738951848110,-500.0,0.00011232,2]
[352110931,1738951848120,-512.50320037,0.00011232,2]
[352110933,1738951848129,-500.0,0.00011232,2]
[352110935,1738951848139,-500.0,0.00011232,2]
[352110937,1738951848149,-371.48801102,0.00011232,2]
[352110939,1738951848160,-500.0,0.00011232,2]
[352110941,1738951848171,-500.0,0.00011232,2]
[352110943,1738951848181,-511.34359771,0.00011232,2]
[352110945,1738951848191,-500.0,0.00011232,2]
[352110947,1738951848200,-525.17,0.00011232,2]
[352110949,1738951848210,-505.08567262,0.00011232,2]
[352110951,1738951848220,-524.17210782,0.00011232,2]
[352110953,1738951848231,-638.72,0.00011232,2]
[352110955,1738951848242,-500.0,0.00011232,2]
[352110957,1738951848252,-788.54,0.00011232,2]
[352110959,1738951848264,-500.0,0.00011232,2]
[352110961,1738951848275,-1348.78,0.00011232,2]
[352110963,1738951848285,-18928.19,0.00011232,2]
[352110965,1738951848295,-519.99234604,0.00011232,2]
[352110967,1738951848305,-316.59809591,0.00011232,2]
[352110969,1738951848315,-500.0,0.00011232,2]
[352110971,1738951848325,-500.0,0.00011232,2]
[352110973,1738951848335,-500.0,0.00011232,2]
[352110975,1738951848345,-500.0,0.00011232,2]
[352110977,1738951848355,-500.0,0.00011232,2]
[352110979,1738951848365,-289.85139457,0.00011232,2]
[352110981,1738951848375,-500.0,0.00011232,2]
[352110983,1738951848385,-500.0,0.00011232,2]
[352110985,1738951848395,-500.0,0.00011232,2]